[Event "European Womens-ch 2025"]
[Site "Rhodes"]
[Date "2025.04.05"]
[Round "6.36"]
[White "Mihaljevic, Eva"]
[Black "Rudzinska, Michalina"]
[Result "0-1"]
[Annotator "ChessBase"]
[ECO "B15"]
[WhiteElo "2039"]
[BlackElo "2223"]
[PlyCount "92"]
[EventDate "2025.03.29"]
[EventType "swiss"]
[EventCountry "GRE"]
[SourceTitle "playchess.com"]
[Source "ChessBase"]
[SourceQuality "1"]
[TimeControl "40/5400+30:1800+30"]

1. e4 {[%emt 0:00:03]} c6 {[%emt 0:00:18]} 2. d4 {[%emt 0:00:08]} d5 {[%emt 0:00:06]} 3. Nd2 {[%emt 0:00:15]} dxe4 {[%emt 0:00:11]} 4. Nxe4 {[%emt 0:00:06]} Nf6 {[%emt 0:00:18]} 5. Nxf6+ {[%emt 0:00:08]} exf6 {[%emt 0:00:06]} 6. c3 {[%emt 0:00:10]} Bd6 {[%emt 0:00:15]} 7. Bd3 {[%emt 0:00:09]} O-O {[%emt 0:00:21]} 8. Ne2 {[%emt 0:00:12]} Re8 {[%emt 0:00:20]} 9. O-O {[%emt 0:00:09]} Nd7 {[%emt 0:00:25]} 10. Ng3 {[%emt 0:00:52]} g6 {[%emt 0:00:58]} 11. a4 {[%emt 0:07:37]} f5 {[%emt 0:03:16]} 12. f4 {[%emt 0:02:35]} Nf6 {[%emt 0:03:15]} 13. Qf3 {[%emt 0:17:33]} Be6 {[%emt 0:04:52]} 14. Re1 {[%emt 0:08:55]} Qd7 {[%emt 0:04:39]} 15. Bd2 {[%emt 0:02:45]} Rad8 {[%emt 0:03:55]} 16. Kh1 {[%emt 0:05:25]} Bc7 {[%emt 0:08:30]} 17. b4 {[%emt 0:11:47]} h5 {[%emt 0:04:55]} 18. h3 {[%emt 0:02:56]} h4 {[%emt 0:17:18]} 19. Nf1 {[%emt 0:00:48]} Kg7 {[%emt 0:02:40]} 20. Qf2 {[%emt 0:06:17]} Rh8 {[%emt 0:00:41]} 21. Nh2 {[%emt 0:02:47]} Nh5 {[%emt 0:15:15]} 22. c4 {[%emt 0:15:28]} Bb6 {[%emt 0:00:18]} 23. Nf3 {[%emt 0:01:07]} Bxd4 {[%emt 0:01:21]} 24. Nxd4 {[%emt 0:01:07]} Qxd4 {[%emt 0:00:07]} 25. Qxd4+ {[%emt 0:00:33]} Rxd4 {[%emt 0:00:05]} 26. Bc3 {[%emt 0:00:50]} Rhd8 {[%emt 0:00:15]} 27. Rad1 {[%emt 0:06:30]} Kh7 {[%emt 0:00:55]} 28. Bxd4 {[%emt 0:00:11]} Rxd4 {[%emt 0:00:04]} 29. Bf1 {[%emt 0:00:37]} Rxf4 {[%emt 0:00:32]} 30. Rc1 {[%emt 0:02:21]} g5 {[%emt 0:06:53]} 31. Bd3 {[%emt 0:00:16]} Rd4 {[%emt 0:00:54]} 32. Red1 {[%emt 0:01:32]} Kg7 {[%emt 0:00:32]} 33. Kg1 {[%emt 0:01:03]} g4 {[%emt 0:01:41]} 34. Bb1 {[%emt 0:02:45]} Rf4 {[%emt 0:06:01]} 35. Rf1 {[%emt 0:01:00]} g3 {[%emt 0:00:08]} 36. Bd3 {[%emt 0:00:30]} Rd4 {[%emt 0:04:52]} 37. Bxf5 {[%emt 0:00:51]} Nf4 {[%emt 0:00:13]} 38. Bxe6 {[%emt 0:00:35]} fxe6 {[%emt 0:00:56]} 39. Rc2 {[%emt 0:00:28]} e5 {[%emt 0:00:40]} 40. a5 {[%emt 0:00:00]} Kf6 {[%emt 0:00:00]} 41. Rb1 {[%emt 0:13:29]} e4 {[%emt 0:03:02]} 42. Kf1 {[%emt 0:00:31]} Ke5 {[%emt 0:01:45]} 43. Ke1 {[%emt 0:02:13]} e3 {[%emt 0:01:28]} 44. Rb3 {[%emt 0:04:14]} Ke4 {[%emt 0:02:03]} 45. c5 {[%emt 0:02:41]} a6 {[%emt 0:00:49]} 46. Rbc3 {[%emt 0:04:26]} Nd5 {[%emt 0:02:33]} 0-1

[Event "European Womens-ch 2025"]
[Site "Rhodes"]
[Date "2025.04.05"]
[Round "6.37"]
[White "Lehaci, Miruna-Daria"]
[Black "Deak-Sala, Emilia"]
[Result "1/2-1/2"]
[Annotator "ChessBase"]
[ECO "D05"]
[WhiteElo "2212"]
[BlackElo "2112"]
[PlyCount "47"]
[EventDate "2025.03.29"]
[EventType "swiss"]
[EventCountry "GRE"]
[SourceTitle "playchess.com"]
[Source "ChessBase"]
[SourceQuality "1"]
[TimeControl "40/5400+30:1800+30"]

1. d4 {[%emt 0:00:04]} Nf6 {[%emt 0:00:06]} 2. Nf3 {[%emt 0:00:05]} e6 {[%emt 0:00:42]} 3. e3 {[%emt 0:00:11]} b6 {[%emt 0:00:17]} 4. Bd3 {[%emt 0:00:30]} Bb7 {[%emt 0:00:06]} 5. O-O {[%emt 0:00:23]} Be7 {[%emt 0:00:42]} 6. Nbd2 {[%emt 0:01:10]} d5 {[%emt 0:00:15]} 7. b3 {[%emt 0:00:43]} O-O {[%emt 0:00:20]} 8. Bb2 Nbd7 {[%emt 0:00:30]} 9. c4 dxc4 {[%emt 0:00:30]} 10. bxc4 c5 {[%emt 0:00:30]} 11. Qe2 Rc8 {[%emt 0:00:30]} 12. Rac1 Rc7 {[%emt 0:00:30]} 13. Bb1 {[%emt 0:11:48]} Qa8 {[%emt 0:00:30]} 14. Rfd1 {[%emt 0:00:30]} Rd8 {[%emt 0:00:30]} 15. Ne1 {[%emt 0:00:30]} Nf8 {[%emt 0:00:30]} 16. Nb3 {[%emt 0:00:30]} cxd4 {[%emt 0:00:30]} 17. exd4 {[%emt 0:00:30]} Ng6 {[%emt 0:00:30]} 18. g3 {[%emt 0:00:30]} a5 {[%emt 0:00:30]} 19. a3 {[%emt 0:00:30]} Ne4 {[%emt 0:00:30]} 20. Nd2 {[%emt 0:00:30]} Nxd2 {[%emt 0:00:30]} 21. Qxd2 {[%emt 0:00:30]} Bf6 {[%emt 0:00:30]} 22. Qe3 {[%emt 0:00:30]} Qc8 {[%emt 0:00:30]} 23. Qb3 {[%emt 0:00:30]} Ba8 {[%emt 0:00:30]} 24. f3 {[%emt 0:00:30]} 1/2-1/2

[Event "European Womens-ch 2025"]
[Site "Rhodes"]
[Date "2025.04.05"]
[Round "6.38"]
[White "Mamedjarova, Turkan"]
[Black "Tirpan, Ceren"]
[Result "0-1"]
[Annotator "ChessBase"]
[ECO "B20"]
[WhiteElo "2206"]
[BlackElo "1996"]
[PlyCount "46"]
[EventDate "2025.03.29"]
[EventType "swiss"]
[EventCountry "GRE"]
[SourceTitle "playchess.com"]
[Source "ChessBase"]
[SourceQuality "1"]
[TimeControl "40/5400+30:1800+30"]

1. e4 {[%emt 0:00:13]} c5 {[%emt 0:00:13]} 2. b3 {[%emt 0:00:06]} g6 {[%emt 0:00:46]} 3. Bb2 {[%emt 0:00:05]} Nf6 {[%emt 0:00:03]} 4. e5 {[%emt 0:00:12]} Nd5 {[%emt 0:00:06]} 5. Nf3 {[%emt 0:01:03]} Bg7 {[%emt 0:01:49]} 6. g3 {[%emt 0:03:01]} Nc6 {[%emt 0:02:17]} 7. h3 {[%emt 0:11:07]} O-O {[%emt 0:04:17]} 8. Bg2 {[%emt 0:03:12]} d6 {[%emt 0:02:40]} 9. Qe2 {[%emt 0:01:20]} Ndb4 {[%emt 0:12:33]} 10. Na3 {[%emt 0:04:58]} dxe5 {[%emt 0:01:12]} 11. O-O-O {[%emt 0:03:29]} Nxa2+ {[%emt 0:03:50]} 12. Kb1 {[%emt 0:00:01]} Nab4 {[%emt 0:00:08]} 13. Qc4 {[%emt 0:01:04]} a5 {[%emt 0:09:47]} 14. Qxc5 {[%emt 0:02:22]} a4 {[%emt 0:01:07]} 15. bxa4 {[%emt 0:04:49]} Rxa4 {[%emt 0:02:29]} 16. d4 {[%emt 0:02:51]} Ra5 17. Qc4 {[%emt 0:59:07]} Be6 {[%emt 0:05:22]} 18. d5 {[%emt 0:00:00]} Bxd5 {[%emt 0:09:22]} 19. Qc3 {[%emt 0:00:00]} Bf6 {[%emt 0:02:28]} 20. Qe3 {[%emt 0:00:00]} Qa8 {[%emt 0:01:22]} 21. h4 {[%emt 0:02:00]} Ba2+ {[%emt 0:05:19]} 22. Kc1 {[%emt 0:00:00]} Nd5 {[%emt 0:00:35]} 23. Qd3 {[%emt 0:00:00]} e4 {[%emt 0:00:33]} 0-1

[Event "European Womens-ch 2025"]
[Site "Rhodes"]
[Date "2025.04.05"]
[Round "6.39"]
[White "Ibrahimova, Sabina"]
[Black "Huseynova, Lala"]
[Result "1-0"]
[Annotator "ChessBase"]
[ECO "D31"]
[WhiteElo "2199"]
[BlackElo "2065"]
[PlyCount "89"]
[EventDate "2025.03.29"]
[EventType "swiss"]
[EventCountry "GRE"]
[SourceTitle "playchess.com"]
[Source "ChessBase"]
[SourceQuality "1"]
[TimeControl "40/5400+30:1800+30"]

1. c4 {[%emt 0:03:27]} e6 {[%emt 0:00:15]} 2. Nc3 {[%emt 0:00:19]} d5 {[%emt 0:00:16]} 3. d4 {[%emt 0:00:15]} Be7 {[%emt 0:00:08]} 4. cxd5 {[%emt 0:00:18]} exd5 {[%emt 0:00:02]} 5. Bf4 {[%emt 0:00:19]} c6 {[%emt 0:00:13]} 6. e3 {[%emt 0:00:43]} Bf5 {[%emt 0:00:20]} 7. h4 {[%emt 0:03:11]} Nd7 {[%emt 0:07:16]} 8. h5 {[%emt 0:10:24]} h6 {[%emt 0:03:04]} 9. Nge2 {[%emt 0:00:26]} Nb6 {[%emt 0:08:36]} 10. Ng3 {[%emt 0:02:41]} Bh7 {[%emt 0:05:59]} 11. Bd3 {[%emt 0:03:40]} Bxd3 {[%emt 0:06:07]} 12. Qxd3 {[%emt 0:00:34]} Nc4 {[%emt 0:09:25]} 13. b3 {[%emt 0:06:52]} Nd6 {[%emt 0:00:15]} 14. O-O {[%emt 0:02:27]} Nf6 {[%emt 0:09:32]} 15. f3 {[%emt 0:01:24]} O-O {[%emt 0:09:04]} 16. e4 {[%emt 0:02:36]} Nc8 {[%emt 0:01:39]} 17. e5 {[%emt 0:02:01]} Nh7 {[%emt 0:01:17]} 18. Be3 {[%emt 0:03:24]} Qd7 {[%emt 0:07:10]} 19. f4 {[%emt 0:04:22]} f5 {[%emt 0:01:13]} 20. Na4 {[%emt 0:04:09]} Qe6 {[%emt 0:04:20]} 21. Rf3 {[%emt 0:02:39]} a5 {[%emt 0:06:23]} 22. Ne2 {[%emt 0:02:33]} Qf7 {[%emt 0:02:48]} 23. Rh3 {[%emt 0:01:24]} b5 {[%emt 0:02:14]} 24. Nc5 {[%emt 0:03:49]} Bxc5 {[%emt 0:05:55]} 25. dxc5 {[%emt 0:00:04]} a4 {[%emt 0:00:06]} 26. b4 {[%emt 0:00:47]} Ne7 {[%emt 0:00:30]} 27. Nd4 {[%emt 0:00:17]} Rfd8 {[%emt 0:00:43]} 28. Bf2 {[%emt 0:02:03]} Nf8 {[%emt 0:04:28]} 29. e6 {[%emt 0:12:13]} Nxe6 {[%emt 0:00:54]} 30. Nxe6 {[%emt 0:00:08]} Qxe6 {[%emt 0:00:01]} 31. Re1 {[%emt 0:04:19]} Qf7 {[%emt 0:00:05]} 32. Bd4 {[%emt 0:00:42]} Kh7 {[%emt 0:02:20]} 33. Rg3 {[%emt 0:02:42]} g6 {[%emt 0:00:33]} 34. Rxe7 {[%emt 0:09:46]} Qxe7 {[%emt 0:00:01]} 35. hxg6+ {[%emt 0:00:53]} Kg8 {[%emt 0:00:01]} 36. Rh3 {[%emt 0:01:11]} Qe1+ {[%emt 0:03:10]} 37. Kh2 {[%emt 0:03:05]} Qe4 {[%emt 0:00:05]} 38. Qd2 {[%emt 0:03:08]} Rd7 {[%emt 0:01:29]} 39. Qf2 {[%emt 0:02:10]} Re8 {[%emt 0:01:07]} 40. Re3 {[%emt 0:00:00]} Re6 {[%emt 0:00:00]} 41. Rxe4 {[%emt 0:02:14]} dxe4 {[%emt 0:00:54]} 42. g7 {[%emt 0:11:56]} Re8 {[%emt 0:04:50]} 43. Be5 {[%emt 0:03:57]} Re6 {[%emt 0:00:31]} 44. Qe2 {[%emt 0:05:19]} Rd3 {[%emt 0:01:00]} 45. Qh5 {[%emt 0:01:35]} 1-0

[Event "European Womens-ch 2025"]
[Site "Rhodes"]
[Date "2025.04.05"]
[Round "6.40"]
[White "Nenova, Andzhelika"]
[Black "Schippke, Manon"]
[Result "1/2-1/2"]
[Annotator "ChessBase"]
[ECO "C02"]
[WhiteElo "1903"]
[BlackElo "2247"]
[PlyCount "130"]
[EventDate "2025.03.29"]
[EventType "swiss"]
[EventCountry "GRE"]
[SourceTitle "playchess.com"]
[Source "ChessBase"]
[SourceQuality "1"]
[TimeControl "40/5400+30:1800+30"]

1. e4 {[%emt 0:00:02]} e6 {[%emt 0:00:43]} 2. d4 {[%emt 0:00:08]} d5 {[%emt 0:00:04]} 3. e5 {[%emt 0:00:03]} c5 {[%emt 0:00:03]} 4. c3 {[%emt 0:00:03]} Nc6 {[%emt 0:00:04]} 5. Nf3 {[%emt 0:00:05]} Nge7 {[%emt 0:00:13]} 6. Bd3 {[%emt 0:00:20]} cxd4 {[%emt 0:00:38]} 7. cxd4 {[%emt 0:00:35]} Nf5 {[%emt 0:00:04]} 8. Bxf5 {[%emt 0:00:29]} exf5 {[%emt 0:00:03]} 9. Nc3 {[%emt 0:00:47]} Be7 {[%emt 0:04:08]} 10. h4 {[%emt 0:06:21]} h6 {[%emt 0:01:35]} 11. Ne2 {[%emt 0:04:21]} f4 {[%emt 0:05:47]} 12. Nxf4 {[%emt 0:03:42]} Bg4 {[%emt 0:00:42]} 13. Be3 {[%emt 0:02:02]} Qa5+ {[%emt 0:04:46]} 14. Kf1 {[%emt 0:00:26]} O-O-O {[%emt 0:01:36]} 15. b4 {[%emt 0:14:26]} Bxb4 {[%emt 0:06:27]} 16. a3 {[%emt 0:00:22]} Bc3 {[%emt 0:07:14]} 17. Rb1 {[%emt 0:07:12]} Qxa3 {[%emt 0:05:32]} 18. Rb3 {[%emt 0:01:42]} Qa6+ {[%emt 0:05:17]} 19. Kg1 {[%emt 0:00:10]} Bxf3 {[%emt 0:03:43]} 20. gxf3 {[%emt 0:02:06]} Qc4 {[%emt 0:06:03]} 21. Qb1 {[%emt 0:10:45]} g5 {[%emt 0:13:39]} 22. Nd3 {[%emt 0:14:37]} Bxd4 {[%emt 0:14:06]} 23. Bxd4 {[%emt 0:06:51]} Nxd4 {[%emt 0:04:29]} 24. Rb4 {[%emt 0:03:12]} Qc2 {[%emt 0:00:15]} 25. Kg2 {[%emt 0:05:37]} Qxb1 {[%emt 0:00:03]} 26. Rhxb1 {[%emt 0:00:10]} Nc6 {[%emt 0:00:02]} 27. Rxb7 {[%emt 0:00:12]} Rd7 {[%emt 0:00:01]} 28. R7b2 {[%emt 0:12:09]} Re8 {[%emt 0:02:20]} 29. Rc2 {[%emt 0:01:05]} Rc7 {[%emt 0:00:41]} 30. Rbc1 {[%emt 0:00:22]} Re6 {[%emt 0:00:42]} 31. Nc5 {[%emt 0:01:15]} Nd4 {[%emt 0:03:02]} 32. Rd2 {[%emt 0:01:06]} Rec6 {[%emt 0:00:22]} 33. Rxd4 {[%emt 0:00:47]} Rxc5 {[%emt 0:00:03]} 34. Rcd1 {[%emt 0:00:09]} a5 {[%emt 0:01:16]} 35. hxg5 {[%emt 0:00:36]} hxg5 {[%emt 0:00:03]} 36. Kg3 {[%emt 0:00:36]} Ra7 {[%emt 0:12:44]} 37. Ra4 {[%emt 0:01:42]} Kd7 {[%emt 0:00:00]} 38. Kg4 {[%emt 0:00:47]} Ke6 {[%emt 0:00:00]} 39. Kxg5 {[%emt 0:00:35]} Kxe5 {[%emt 0:00:00]} 40. f4+ {[%emt 0:00:00]} Kd6 {[%emt 0:00:00]} 41. Kf6 {[%emt 0:03:02]} Kc6 {[%emt 0:00:00]} 42. f5 {[%emt 0:01:55]} Rc4 {[%emt 0:00:00]} 43. Ra2 {[%emt 0:02:46]} a4 {[%emt 0:00:00]} 44. Re1 {[%emt 0:06:16]} Kd6 {[%emt 0:00:00]} 45. Rh1 {[%emt 0:02:34]} Kc5 {[%emt 0:02:19]} 46. Rh7 {[%emt 0:00:49]} Rf4 {[%emt 0:00:54]} 47. Ke5 {[%emt 0:08:20]} Rb4 {[%emt 0:02:30]} 48. Rh8 {[%emt 0:01:00]} Re4+ {[%emt 0:02:00]} 49. Kf6 {[%emt 0:00:08]} Kb4 {[%emt 0:05:42]} 50. Rb8+ {[%emt 0:01:11]} Kc3 {[%emt 0:00:02]} 51. Ra3+ {[%emt 0:00:20]} Kc4 {[%emt 0:01:16]} 52. Ra1 {[%emt 0:03:19]} a3 {[%emt 0:02:09]} 53. Rc1+ {[%emt 0:00:13]} Kd3 {[%emt 0:00:48]} 54. Rb3+ {[%emt 0:00:07]} Kd2 {[%emt 0:02:19]} 55. Ra1 {[%emt 0:00:06]} Rea4 {[%emt 0:01:09]} 56. Ra2+ {[%emt 0:02:13]} Kc1 {[%emt 0:00:01]} 57. Rh3 {[%emt 0:02:07]} Kb1 {[%emt 0:00:58]} 58. Rd2 {[%emt 0:00:08]} Rc4 {[%emt 0:00:15]} 59. Rb3+ {[%emt 0:00:20]} Kc1 {[%emt 0:02:59]} 60. Ra2 {[%emt 0:00:15]} d4 {[%emt 0:01:55]} 61. Rbxa3 {[%emt 0:01:28]} Rxa3 {[%emt 0:02:59]} 62. Rxa3 {[%emt 0:00:06]} Rc5 {[%emt 0:00:42]} 63. Rd3 {[%emt 0:01:49]} Rd5 {[%emt 0:00:06]} 64. Kxf7 {[%emt 0:00:34]} Rxf5+ {[%emt 0:00:04]} 65. Ke6 {[%emt 0:00:07]} Rxf2 {[%emt 0:00:12]} 1/2-1/2

[Event "European Womens-ch 2025"]
[Site "Rhodes"]
[Date "2025.04.05"]
[Round "6.41"]
[White "Stefanova, Antoaneta"]
[Black "Vidic, Teja"]
[Result "0-1"]
[Annotator "RC"]
[ECO "D11"]
[WhiteElo "2426"]
[BlackElo "2100"]
[PlyCount "92"]
[EventDate "2025.03.29"]
[EventType "swiss"]
[EventCountry "GRE"]
[SourceTitle "playchess.com"]
[Source "ChessBase"]
[SourceQuality "1"]
[TimeControl "40/5400+30:1800+30"]

1. Nf3 {[%emt 0:04:07]} d5 {[%emt 0:00:06]} 2. g3 {[%emt 0:00:08]} Bg4 {[%emt 0:00:05]} 3. Bg2 {[%emt 0:00:37]} e6 {[%emt 0:00:08]} 4. c4 {[%emt 0:14:16]} c6 {[%emt 0:02:29]} 5. O-O {[%emt 0:04:51]} Nf6 {[%emt 0:00:25]} 6. d4 {[%emt 0:01:00]} Nbd7 {[%emt 0:00:21]} 7. h3 {[%emt 0:04:59]} Bh5 {[%emt 0:00:06]} 8. Qb3 {[%emt 0:00:49]} Qb6 {[%emt 0:00:41]} 9. Nc3 {[%emt 0:00:39]} Be7 {[%emt 0:04:34]} 10. Nh4 {[%emt 0:02:14]} Bg6 {[%emt 0:01:01]} 11. Nxg6 {[%emt 0:04:19]} hxg6 {[%emt 0:00:09]} 12. Rd1 {[%emt 0:01:47]} O-O {[%emt 0:01:58]} 13. g4 {[%emt 0:06:54]} Rfe8 {[%emt 0:06:22]} 14. g5 {[%emt 0:02:06]} Nh7 {[%emt 0:04:55]} 15. h4 {[%emt 0:01:14]} Qa6 {[%emt 0:06:20]} 16. cxd5 {[%emt 0:02:12]} exd5 {[%emt 0:02:36]} 17. e4 {[%emt 0:08:24]} dxe4 {[%emt 0:01:24]} 18. Bxe4 {[%emt 0:00:25]} Nhf8 {[%emt 0:01:09]} 19. h5 {[%emt 0:19:42]} gxh5 {[%emt 0:04:00]} 20. g6 {[%emt 0:00:04]} Ne6 {[%emt 0:00:05]} 21. gxf7+ {[%emt 0:11:04]} Kxf7 {[%emt 0:00:08]} 22. Bf5 {[%emt 0:00:47]} Ndf8 {[%emt 0:04:56]} 23. Re1 {[%emt 0:00:21]} c5 {[%emt 0:04:31]} 24. Nb5 {[%emt 0:01:28]} Qb6 {[%emt 0:09:34]} 25. Bf4 {[%emt 0:00:08]} Rac8 {[%emt 0:06:17]} 26. d5 {[%emt 0:01:25]} Nxf4 {[%emt 0:00:46]} 27. d6+ {[%emt 0:04:46]} c4 {[%emt 0:00:28]} 28. Rxe7+ {[%emt 0:00:48]} Rxe7 {[%emt 0:13:46]} 29. Qf3 {[%emt 0:00:19]} Qxb5 {[%emt 0:00:11]} 30. Qxf4 {[%emt 0:00:56]} Ng6 {[%emt 0:12:15]} 31. Qg5 {[%emt 0:01:32]} Re5 {[%emt 0:00:57]} 32. Qxg6+ {[%emt 0:01:20]} Kf8 {[%emt 0:00:14]} 33. Qxh5 {[%emt 0:00:41]} Rxf5 {[%emt 0:00:55]} 34. Qh8+ {[%emt 0:00:05]} Kf7 {[%emt 0:00:05]} 35. Qxc8 {[%emt 0:00:06]} Rg5+ {[%emt 0:00:08]} 36. Kh2 {[%emt 0:00:37]} Qe5+ {[%emt 0:04:30]} 37. Kh3 {[%emt 0:00:06]} Rh5+ {[%emt 0:00:02]} 38. Kg4 {[%emt 0:01:00]} Qg5+ {[%emt 0:00:16]} 39. Kf3 {[%emt 0:00:05]} Qd5+ {[%emt 0:00:05]} 40. Kg4 {[%emt 0:00:00]} Qg5+ {[%emt 0:00:00]} 41. Kf3 {[%emt 0:00:43]} Qf6+ {[%emt 0:05:39]} 42. Kg2 {[%emt 0:12:52]} Qg6+ {[%emt 0:00:16]} 43. Kf3 {[%emt 0:00:41]} Qd3+ {[%emt 0:04:12]} 44. Kf4 {[%emt 0:00:24]} g5+ {[%emt 0:00:42]} 45. Ke5 {[%emt 0:00:26]} g4+ {[%emt 0:00:05]} 46. Kf4 {[%emt 0:00:08]} Qf3# {[%emt 0:00:03]} 0-1

[Event "European Womens-ch 2025"]
[Site "Rhodes"]
[Date "2025.04.05"]
[Round "6.42"]
[White "Khurtsilava, Inga"]
[Black "Sivanandan, Bodhana"]
[Result "1/2-1/2"]
[Annotator "ChessBase"]
[ECO "D04"]
[WhiteElo "2214"]
[BlackElo "2073"]
[PlyCount "122"]
[EventDate "2025.03.29"]
[EventType "swiss"]
[EventCountry "GRE"]
[SourceTitle "playchess.com"]
[Source "ChessBase"]
[SourceQuality "1"]
[TimeControl "40/5400+30:1800+30"]

1. d4 {[%emt 0:00:01]} d5 {[%emt 0:00:41]} 2. Nf3 {[%emt 0:00:07]} Nf6 {[%emt 0:00:26]} 3. e3 {[%emt 0:00:05]} c6 {[%emt 0:00:26]} 4. Bd3 {[%emt 0:02:52]} Bg4 {[%emt 0:00:53]} 5. h3 {[%emt 0:01:03]} Bh5 {[%emt 0:01:18]} 6. g4 {[%emt 0:01:50]} Bg6 {[%emt 0:00:33]} 7. Ne5 {[%emt 0:00:06]} e6 {[%emt 0:01:40]} 8. Nd2 {[%emt 0:02:18]} Nbd7 {[%emt 0:03:35]} 9. Nxg6 {[%emt 0:03:18]} hxg6 {[%emt 0:00:15]} 10. g5 {[%emt 0:04:10]} Ng8 {[%emt 0:00:30]} 11. f4 {[%emt 0:00:55]} Bd6 {[%emt 0:03:28]} 12. c4 {[%emt 0:06:21]} Bb4 {[%emt 0:09:13]} 13. Qb3 {[%emt 0:10:26]} Qb6 {[%emt 0:02:04]} 14. Qc2 {[%emt 0:01:54]} Ne7 {[%emt 0:04:18]} 15. a3 {[%emt 0:00:59]} Bxd2+ {[%emt 0:01:03]} 16. Bxd2 {[%emt 0:00:09]} c5 {[%emt 0:15:23]} 17. cxd5 {[%emt 0:03:44]} cxd4 {[%emt 0:00:57]} 18. exd4 {[%emt 0:27:13]} Nxd5 {[%emt 0:07:09]} 19. Qa4 {[%emt 0:02:57]} a6 {[%emt 0:03:47]} 20. O-O-O {[%emt 0:02:16]} Qd6 {[%emt 0:02:40]} 21. Kb1 {[%emt 0:06:26]} O-O-O {[%emt 0:01:21]} 22. Ba5 {[%emt 0:02:50]} Rde8 {[%emt 0:09:12]} 23. Be4 {[%emt 0:01:32]} Kb8 {[%emt 0:00:19]} 24. Qb3 {[%emt 0:01:59]} Rc8 {[%emt 0:05:21]} 25. Ka1 {[%emt 0:01:38]} Ka7 {[%emt 0:09:54]} 26. Rhf1 {[%emt 0:01:09]} N7b6 {[%emt 0:02:49]} 27. Bxb6+ {[%emt 0:00:36]} Nxb6 {[%emt 0:00:11]} 28. Rf3 {[%emt 0:03:17]} Rhd8 {[%emt 0:01:08]} 29. Rf2 {[%emt 0:03:41]} Rc4 {[%emt 0:02:10]} 30. Qf3 {[%emt 0:01:03]} Nd5 {[%emt 0:01:20]} 31. h4 {[%emt 0:00:43]} Qb6 {[%emt 0:01:46]} 32. Rfd2 {[%emt 0:00:48]} Qc7 {[%emt 0:01:40]} 33. Kb1 {[%emt 0:02:10]} Qd7 {[%emt 0:02:30]} 34. Qb3 {[%emt 0:01:04]} Rc6 {[%emt 0:00:20]} 35. Qf3 {[%emt 0:00:56]} Rd6 {[%emt 0:01:24]} 36. h5 {[%emt 0:01:34]} gxh5 {[%emt 0:00:19]} 37. Bxd5 {[%emt 0:00:07]} exd5 {[%emt 0:00:29]} 38. f5 {[%emt 0:01:32]} g6 {[%emt 0:00:20]} 39. Rf2 {[%emt 0:01:52]} Re8 {[%emt 0:00:26]} 40. Rc1 {[%emt 0:00:00]} Rc6 {[%emt 0:00:00]} 41. Rc5 {[%emt 0:01:12]} Rxc5 {[%emt 0:07:31]} 42. dxc5 {[%emt 0:00:06]} Qe7 {[%emt 0:00:53]} 43. Rc2 {[%emt 0:08:58]} Qe4 {[%emt 0:03:17]} 44. Qb3 {[%emt 0:00:33]} Rc8 {[%emt 0:00:35]} 45. Qb6+ {[%emt 0:07:06]} Ka8 {[%emt 0:00:42]} 46. fxg6 {[%emt 0:00:04]} fxg6 {[%emt 0:00:53]} 47. b4 {[%emt 0:01:53]} d4 {[%emt 0:05:03]} 48. Qd6 {[%emt 0:00:38]} d3 {[%emt 0:01:08]} 49. Rb2 {[%emt 0:00:19]} d2+ {[%emt 0:14:54]} 50. Ka1 {[%emt 0:00:12]} Qe1+ {[%emt 0:00:11]} 51. Rb1 {[%emt 0:00:05]} Qc1 {[%emt 0:00:14]} 52. Ka2 {[%emt 0:01:05]} Qc2+ {[%emt 0:00:58]} 53. Ka1 {[%emt 0:00:20]} h4 {[%emt 0:01:11]} 54. Qd7 {[%emt 0:02:50]} Rf8 {[%emt 0:00:18]} 55. c6 {[%emt 0:02:30]} bxc6 {[%emt 0:00:43]} 56. a4 {[%emt 0:02:21]} Qxa4+ {[%emt 0:01:04]} 57. Kb2 {[%emt 0:00:05]} Qxb4+ {[%emt 0:00:19]} 58. Kc2 {[%emt 0:00:05]} Qc4+ {[%emt 0:00:20]} 59. Kb2 {[%emt 0:00:45]} Rb8+ {[%emt 0:00:08]} 60. Ka3 {[%emt 0:00:05]} Rxb1 {[%emt 0:00:45]} 61. Qa7+ {[%emt 0:00:10]} Kxa7 {[%emt 0:00:11]} 1/2-1/2

[Event "European Womens-ch 2025"]
[Site "Rhodes"]
[Date "2025.04.05"]
[Round "6.43"]
[White "Paasikangas, Johanna"]
[Black "Lach, Aleksandra"]
[Result "0-1"]
[Annotator "ChessBase"]
[ECO "A85"]
[WhiteElo "2106"]
[BlackElo "2208"]
[PlyCount "46"]
[EventDate "2025.03.29"]
[EventType "swiss"]
[EventCountry "GRE"]
[SourceTitle "playchess.com"]
[Source "ChessBase"]
[SourceQuality "1"]
[TimeControl "40/5400+30:1800+30"]

1. d4 {[%emt 0:00:05]} e6 {[%emt 0:01:30]} 2. c4 {[%emt 0:00:12]} f5 {[%emt 0:05:33]} 3. Nc3 {[%emt 0:01:04]} Nf6 {[%emt 0:01:10]} 4. Nf3 {[%emt 0:00:36]} Be7 {[%emt 0:07:56]} 5. e3 {[%emt 0:08:44]} b6 {[%emt 0:07:26]} 6. Bd3 {[%emt 0:06:01]} Bb7 {[%emt 0:00:54]} 7. Rb1 {[%emt 0:03:40]} a5 {[%emt 0:07:46]} 8. a3 {[%emt 0:00:50]} O-O {[%emt 0:04:07]} 9. b4 {[%emt 0:02:48]} axb4 {[%emt 0:00:55]} 10. axb4 {[%emt 0:00:08]} Ne4 {[%emt 0:01:18]} 11. Bxe4 {[%emt 0:03:03]} fxe4 {[%emt 0:12:36]} 12. Nd2 {[%emt 0:00:11]} d5 {[%emt 0:00:07]} 13. O-O {[%emt 0:04:06]} Rf6 {[%emt 0:12:10]} 14. c5 {[%emt 0:01:55]} bxc5 {[%emt 0:03:47]} 15. dxc5 {[%emt 0:00:35]} Nd7 {[%emt 0:01:49]} 16. f3 {[%emt 0:04:16]} Ne5 {[%emt 0:01:11]} 17. fxe4 {[%emt 0:02:44]} d4 {[%emt 0:02:07]} 18. exd4 {[%emt 0:29:56]} Qxd4+ {[%emt 0:01:44]} 19. Kh1 {[%emt 0:00:06]} Qxc3 {[%emt 0:04:03]} 20. Bb2 {[%emt 0:00:24]} Rxf1+ {[%emt 0:00:35]} 21. Nxf1 {[%emt 0:00:15]} Qd3 {[%emt 0:00:25]} 22. Nd2 {[%emt 0:09:30]} Ng6 {[%emt 0:02:39]} 23. Qe1 {[%emt 0:05:24]} Bh4 {[%emt 0:01:17]} 0-1